Cogmind - Beta 15 @@@ ROGUE MODE // 2025.05.30 @ 11:59:59 Player: Epsilon 11 Result: Destroyed by G-47 Trooper with Particle Gun Performance ------------- Evolutions (2) 1000 Regions Visited (8) 1600 Robots Destroyed (104) 520 Value Destroyed (3271) 3271 Prototype IDs (10) 200 Alien Tech Used (0) 0 Bonus (554) 554 TOTAL SCORE: 7145 Bonus ------- High Alert Combat Kills 154 Follower Combat Kills 245 Entered Garrisons 200 Friendly Fire -45 Cogmind --------- Core Integrity 0/550 Matter 255/300 Energy 238/280 System Corruption 0% Temperature Warm (123) Movement Rolling (105) Ox1 Location -8/Garrison Parts ------- > --- POWER (1) -------- Heavy Ion Engine > --- PROPULSION (2) --- Armored Wheel Armored Wheel > --- UTILITY (6) ------ Improved Heat Sink Large Storage Unit Improved Terrain Scan Processor Core Analyzer Weapon Cycler Graphene Brace > --- WEAPON (2) ------- Heavy Laser Plasma Cannon > --- INVENTORY (15) --- Light Nuclear Core Structural Scanner Machine Analyzer Experimental Sensor Array Improved Signal Interpreter Active Sensor Suite Improved Terrain Scanner Energy Filter System Shield Mini Grenade Launcher Great Axe Peak State ------------ > --- POWER ------------ Heavy Ion Engine > --- PROPULSION ------- Armored Wheel Armored Wheel > --- UTILITY ---------- Improved Heat Sink Large Storage Unit Improved Terrain Scan Processor Core Analyzer Weapon Cycler Graphene Brace > --- WEAPON ----------- Heavy Laser Plasma Cannon > --- INVENTORY -------- Light Nuclear Core Structural Scanner Machine Analyzer Experimental Sensor Array Improved Signal Interpreter Active Sensor Suite Improved Terrain Scanner Energy Filter System Shield Mini Grenade Launcher Great Axe [Rating: 43] Favorites ----------- Power Light Ion Engine Engine Light Ion Engine Propulsion Wheel Treads Light Treads Wheel Wheel Flight Unit Improved Flight Unit Utility Light Armor Plating Device Heat Sink Storage Medium Storage Unit Processor Improved Terrain Scan Processor Protection Light Armor Plating Weapon Assault Rifle Energy Gun Improved Medium Laser Energy Cannon Plasma Cannon Ballistic Gun Assault Rifle Launcher Mini Grenade Launcher Slashing Weapon Scythe Build | -11 -10 -10 -9 -9 -9 -8 -8 -8 ------- Run | Yrd Mat Min Mat Min Exi Min Mat Gar Slots Evolved 4 | . . . 2 . . . 2 . Power . | . . . . . . . . . Propulsion . | . . . . . . . . . Utility 4 | . . . 2 . . . 2 . Weapon . | . . . . . . . . . Parts Attached 62 | 6 2 1 13 2 1 . 30 7 Power 6 | 1 . . 3 . . . 1 1 Engine 6 | 1 . . 3 . . . 1 1 Core . | . . . . . . . . . Reactor . | . . . . . . . . . Propulsion 11 | 2 . . 2 1 . . 6 . Treads 2 | . . . . . . . 2 . Leg . | . . . . . . . . . Wheel 8 | 2 . . 1 1 . . 4 . Hover . | . . . . . . . . . Flight 1 | . . . 1 . . . . . Utility 30 | 1 2 1 5 . 1 . 16 4 Device 18 | . 1 . 4 . . . 10 3 Storage 3 | 1 . 1 . . 1 . . . Processor 3 | . . . . . . . 3 . Hackware . | . . . . . . . . . Protection 6 | . 1 . 1 . . . 3 1 Artifact . | . . . . . . . . . Weapon 15 | 2 . . 3 1 . . 7 2 Energy Gun 7 | . . . 3 . . . 3 1 Energy Cannon 3 | . . . . . . . 2 1 Ballistic Gun 3 | 2 . . . . . . 1 . Ballistic Cannon . | . . . . . . . . . Launcher 1 | . . . . 1 . . . . Special Weapon . | . . . . . . . . . Impact Weapon . | . . . . . . . . . Slashing Weapon 1 | . . . . . . . 1 . Piercing Weapon . | . . . . . . . . . Special Melee Weapon . | . . . . . . . . . Unidentified Prototypes 6 | . . . 4 . . . 2 . Parts Lost 20 | . . . 3 . . . 15 2 Power 1 | . . . . . . . 1 . Propulsion 3 | . . . . . . . 3 . Utility 11 | . . . 2 . . . 8 1 Weapon 5 | . . . 1 . . . 3 1 Highest Loss Streak 4 | . . . 3 . . . 4 1 To Critical Strikes . | . . . . . . . . . Average Backups 8 | 2 6 8 5 10 12 14 13 12 Power 1 | . 1 1 1 1 1 3 1 . Propulsion 1 | 1 2 2 2 2 2 2 . . Utility 3 | . . 2 1 3 6 6 7 8 Weapon 2 | . 2 2 1 3 3 3 3 2 Tool/Special . | . . . . . . . . . Unused Backups 30 | . 1 5 4 . 3 . 10 7 Power 5 | . . . 2 . . . 2 1 Propulsion 2 | . . 1 1 . . . . . Utility 14 | . . 2 . . 3 . 4 5 Weapon 8 | . 1 2 1 . . . 3 1 Tool/Special 1 | . . . . . . . 1 . Average Slot Usage (%) 99 | . 95 100 99 100 100 100 98 99 Engine 10 | . 14 14 11 11 11 11 8 9 Treads 1 | . . . . . . . 7 . Wheel 19 | . 28 28 22 22 22 22 10 18 Device 22 | . 5 . 21 32 33 29 23 22 Storage 10 | . 14 14 11 11 11 11 9 9 Processor 3 | . . . . . . . 10 18 Protection 8 | . 3 14 10 1 . 3 9 4 Energy Gun 7 | . . . 2 14 22 22 14 9 Energy Cannon 1 | . . . . . . . 2 8 Ballistic Gun 12 | . 28 28 19 . . . . . Peak Build Rating 43 | 6 7 9 21 21 23 23 41 43 Average Rating 17 | 4 6 7 10 20 21 22 31 37 On Entrance 16 | . 6 7 8 21 21 23 22 41 Naked Turns . | . . . . . . . . . Heaviest Build 61 | 12 15 20 28 26 36 39 61 51 Greatest Support 40 | 20 20 20 28 34 34 34 40 24 Greatest Overweight (x) 3 | . . . 1 . 1 1 3 2 Average Overweight (x) . | . . . . . . 1 . 1 Largest Inventory Capacity 15 | 8 8 10 10 10 15 15 15 15 Average Capacity 11 | 6 8 9 10 10 12 15 15 15 Most Carried 15 | 4 8 10 10 10 15 15 15 15 Average Carried 9 | 2 6 8 6 9 12 14 14 14 Final Capacity 15 | 8 8 10 10 10 15 15 15 15 Final Carried 15 | 4 8 10 10 10 15 14 15 13 Class Distribution -------------------- 79% | Mutant 14% | Skirmisher Dominant Class ---------------- Mutant | -10/Materials Mutant | -10/Mines Mutant | -9/Materials Mutant | -9/Mines Mutant | -9/Exiles Mutant | -8/Mines Skirmisher | -8/Materials Skirmisher | -8/Garrison Resources | -11 -10 -10 -9 -9 -9 -8 -8 -8 ----------- Run | Yrd Mat Min Mat Min Exi Min Mat Gar Matter Collected 1758 | 242 31 130 399 122 22 . 587 225 Remotely . | . . . . . . . . . Salvage Created 3809 | . 41 134 812 118 . 206 1960 538 Parts 225 | . 5 17 48 16 . 7 96 36 Haulers Intercepted 4 | . . . 2 . . . 2 . Recyclers Shooed 4 | . . . 3 1 . . . . Parts Field Recycled . | . . . . . . . . . Retrieved Matter . | . . . . . . . . . Parts Self-Destructed . | . . . . . . . . . Prevented . | . . . . . . . . . Kills | -11 -10 -10 -9 -9 -9 -8 -8 -8 ------- Run | Yrd Mat Min Mat Min Exi Min Mat Gar Combat Hostiles Destroyed 77 | . 3 6 7 11 . 2 35 13 Melee 8 | . . . . . . . 8 . Guns 39 | . 3 6 4 1 . 2 17 6 Cannons 10 | . . . . . . . 6 4 AOE 20 | . . . 3 10 . . 4 3 Classes Destroyed 16 | . 1 2 7 1 . 1 4 . Worker 11 | . . 1 7 . . . 3 . Builder 2 | . . . . . . 1 1 . Tunneler 2 | . . 1 1 . . . . . Hauler 4 | . . . 2 . . . 2 . Recycler 5 | . . . 2 1 . 1 1 . Mechanic 1 | . . . . . . . 1 . Operator 2 | . . . 1 . . . 1 . Swarmer 28 | . 3 6 . 10 . . 6 3 Grunt 27 | . . . 4 . . 2 17 4 Brawler 2 | . . . . . . . 1 1 Duelist 1 | . . . 1 . . . . . Sentry 15 | . . . 2 . . . 9 4 Hunter 2 | . . . . . . . 1 1 Heavy 1 | . . . . . . . 1 . Zionite 1 | . . . 1 . . . . . Assembled 1 | . . . . 1 . . . . Best Kill Streak 7 | . 3 3 6 4 . 4 5 7 Combat Bots Only 7 | . 3 3 6 4 . 2 5 7 Max Kills in Single Turn 4 | . 1 2 4 2 . 1 3 2 Gunslinging 1 | . . 1 . . . . 1 . Exploded 3 | . . . 3 2 . . 3 2 Melee 1 | . . . . . . . 1 . Uniques/NPCs Destroyed . | . . . . . . . . . Combat | -11 -10 -10 -9 -9 -9 -8 -8 -8 -------- Run | Yrd Mat Min Mat Min Exi Min Mat Gar Hostile Shots Fired 328 | . 18 12 29 18 . 5 188 58 Missed 94 | . 9 2 9 7 . 4 45 18 Hits 234 | . 9 10 20 11 . 1 143 40 Projectile 234 | . 9 10 20 11 . 1 143 40 Critical Strikes 12 | . . . . 1 . . 11 . Actively Blocked 2 | . . . . . . . 2 . Damage Taken 3517 | . 72 81 288 182 . 50 2223 621 Core 724 | . . 9 62 93 . . 380 180 Absorbed by Shields 102 | . . . . . . . 88 14 Redirected to Shielding 101 | . . . . . . . 101 . Ignored by Resistances 123 | . . . . . . . 123 . Regen/Repaired (Parts) 90 | . . . 2 . . . 88 . Core Remaining (%) 85 | 100 . 96 . . . 61 . . Volleys Fired 229 | . 4 12 54 9 . 7 101 42 Largest 2 | . 2 2 2 2 . 2 2 2 Hottest 149 | . 40 40 101 101 . 101 135 149 Shots Fired 402 | . 8 24 98 11 . 14 180 67 Gun 316 | . 8 24 98 4 . 14 130 38 Cannon 76 | . . . . . . . 49 27 Launcher 10 | . . . . 7 . . 1 2 Special . | . . . . . . . . . Kinetic 107 | . 8 24 75 . . . . . Thermal 229 | . . . 1 2 . 7 154 65 Explosive 10 | . . . . 7 . . 1 2 Electromagnetic 56 | . . . 22 2 . 7 25 . Robot Hit Streak 16 | . 1 5 10 1 . 5 16 10 Robot Miss Streak 5 | . 2 2 3 3 . 3 5 4 Penetration Max . | . . . . . . . . . Secondary Targets 4 | . 1 1 . . . . 2 . Max Gunslinging Chain 1 | . 1 1 . . . . 1 . Shots Hit Robots 259 | . 3 16 64 3 . 7 131 35 Core Hits 156 | . 3 9 33 13 . 9 68 21 Critical Kills . | . . . . . . . . . Critical Parts Destroyed . | . . . . . . . . . Critical Strikes 7 | . . . 1 . . . 5 1 Burn 4 | . . . 1 . . . 2 1 Sever 3 | . . . . . . . 3 . Melee Attacks 28 | . . . . . . . 28 . Impact . | . . . . . . . . . Slashing 28 | . . . . . . . 28 . Piercing . | . . . . . . . . . Sneak Attacks 2 | . . . . . . . 2 . Combat Hostiles . | . . . . . . . . . Follow-up Attacks . | . . . . . . . . . Damage Inflicted 6299 | . 49 223 981 708 . 189 3124 1025 Guns 3312 | . 49 223 818 43 . 125 1675 379 Cannons 1020 | . . . . . . . 574 446 Explosions 1318 | . . . 163 665 . 64 226 200 Melee 623 | . . . . . . . 623 . Ramming 26 | . . . . . . . 26 . Kinetic 895 | . 49 223 623 . . . . . Thermal 3286 | . . . 179 178 . 97 2007 825 Explosive 833 | . . . . 520 . . 113 200 Electromagnetic 636 | . . . 179 10 . 92 355 . Impact . | . . . . . . . . . Slashing 623 | . . . . . . . 623 . Piercing . | . . . . . . . . . Highest Corruption . | . . . . . . . . . Average Corruption . | . . . . . . . . . Corruption Purged . | . . . . . . . . . Corruption Blocked . | . . . . . . . . . Overload Shots . | . . . . . . . . . Overflow Damage 75 | . . . 23 14 . . 38 . Projectiles 18 | . . . . . . . 18 . Explosions 37 | . . . 23 14 . . . . Melee 20 | . . . . . . . 20 . Knockbacks . | . . . . . . . . . Impact . | . . . . . . . . . Kinetic . | . . . . . . . . . Secondary . | . . . . . . . . . Self-Inflicted Damage 245 | . . . 35 78 . 37 95 . Shots 6 | . . . 1 2 . 1 2 . Rammed 5 | . . . . . . . 5 . Targets Rammed 5 | . . . . . . . 5 . Kicked . | . . . . . . . . . Crushed . | . . . . . . . . . Highest Temperature 488 | . . 9 . . . 9 488 438 Average Temperature 118 | . . 5 . . . 5 120 122 Received Heat Transfer 1366 | . 6 . 114 . . 9 949 288 Effects 9 | . . . . . . . 9 . Interference 3 | . . . . . . . 3 . Matter Decay 2 | . . . . . . . 2 . Damage (major) 4 | . . . . . . . 4 . Siege Activations . | . . . . . . . . . Martial Activations . | . . . . . . . . . Shielding Activations . | . . . . . . . . . Robots Disrupted 1 | . . . . . . . 1 . Combat Hostiles 1 | . . . . . . . 1 . Robots Corrupted . | . . . . . . . . . Combat Hostiles . | . . . . . . . . . Parts Fried 1 | . . . 1 . . . . . Impact Corruptions . | . . . . . . . . . Robots Melted . | . . . . . . . . . Combat Hostiles . | . . . . . . . . . Parts Melted 9 | . . . . . . . 8 1 Heat Transferred 6461 | . . . 311 324 . 174 3988 1664 Parts Sabotaged . | . . . . . . . . . Parts Stolen . | . . . . . . . . . Parts Stripped . | . . . . . . . . . Power Chain Reactions 4 | . . . 1 . . 1 2 . Alert | -11 -10 -10 -9 -9 -9 -8 -8 -8 ------- Run | Yrd Mat Min Mat Min Exi Min Mat Gar Maximum Alert Level 3 | . . . 1 1 . . 2 3 Low Security (%) 83 | 100 100 100 98 57 . 100 66 . Level 1 10 | . . . 1 42 . . 30 6 Level 2 4 | . . . . . . . 2 69 Level 3 1 | . . . . . . . . 23 Level 4 . | . . . . . . . . . Level 5 . | . . . . . . . . . High Security . | . . . . . . . . . Max Security . | . . . . . . . . . Peak Influence 950 | . 68 142 246 335 . 62 427 950 Initial 276 | . . 26 . 95 . . 8 276 Average 90 | . 16 52 13 199 . 21 133 658 Influence Increases 2895 | . 98 166 302 350 . 82 1143 754 Destroy 0b10 Robot/C 1660 | . 60 120 160 200 . 40 700 380 Destroy 0b10 Robot/NC 140 | . . 10 65 5 . 10 45 5 Destroy Leader 328 | . 10 20 44 30 . . 204 20 Allied During Kill 114 | . . 16 9 . . . . 89 Trap Triggered on 0b10 10 | . . . 10 . . . . . Successful Hack 98 | . 13 . 12 . . . 59 14 Disable Machine 105 | . . . . 60 . . 30 15 Anti-Garrison Action 150 | . . . . . . . . 150 Destroy Structure 170 | . . . 2 55 . 2 60 51 Lose Combat Pursuer 120 | . 15 . . . . 30 45 30 Influence Decreases 1945 | . 30 234 56 311 285 60 740 229 Entered New Map 641 | . . 42 . 151 285 . 14 149 Time Decay 1014 | . 30 192 6 160 . 60 566 . Lost Part 200 | . . . 30 . . . 150 20 Lost Ally 90 | . . . 20 . . . 10 60 Squads Dispatched 8 | . 2 . . . . . 6 . Investigation 2 | . . . . . . . 2 . Extermination . | . . . . . . . . . Reinforcement 6 | . 2 . . . . . 4 . Assault . | . . . . . . . . . Garrison . | . . . . . . . . . Intercept . | . . . . . . . . . Searches Triggered . | . . . . . . . . . Construction Impeded . | . . . . . . . . . Haulers Reinforced . | . . . . . . . . . Active Scanning Responses . | . . . . . . . . . Cargo Convoy Interrupts . | . . . . . . . . . Stealth | -11 -10 -10 -9 -9 -9 -8 -8 -8 --------- Run | Yrd Mat Min Mat Min Exi Min Mat Gar Distress Signals 8 | . 2 . 2 . . . 2 2 Communications Jammed . | . . . . . . . . . Distress Signals . | . . . . . . . . . Times Spotted 134 | . 10 6 12 11 . 5 65 25 Peak Tracking Total 9 | . 7 3 8 4 . 3 6 9 Tactical Retreats 8 | . 1 . . 1 . 1 3 2 Traps | -11 -10 -10 -9 -9 -9 -8 -8 -8 ------- Run | Yrd Mat Min Mat Min Exi Min Mat Gar Traps Triggered 4 | . . . . . . . 1 3 Indirectly . | . . . . . . . . . Trap Hack Attempts . | . . . . . . . . . Triggered . | . . . . . . . . . Disarmed . | . . . . . . . . . Reprogrammed . | . . . . . . . . . Reused 1 | . . . 1 . . . . . Traps Extracted . | . . . . . . . . . Installed 3 | . . . 3 . . . . . Triggered 1 | . . . 1 . . . . . Most Traps Carried 3 | . . 3 3 . . . . . Machines | -11 -10 -10 -9 -9 -9 -8 -8 -8 ---------- Run | Yrd Mat Min Mat Min Exi Min Mat Gar Machines Disabled 11 | . . . . 4 . . 2 5 Max in Single Turn 3 | . . . . 3 . . 1 2 Garrison Relay 2 | . . . . . . . . 2 Phase Generator 1 | . . . . . . . . 1 Machines Repaired . | . . . . . . . . . Machines Dismantled . | . . . . . . . . . Machines Sabotaged . | . . . . . . . . . Overloaded Fab Kills . | . . . . . . . . . Hacking | -11 -10 -10 -9 -9 -9 -8 -8 -8 --------- Run | Yrd Mat Min Mat Min Exi Min Mat Gar Machines Accessed 25 | . 3 . 4 . 1 . 15 2 Terminals 15 | . 3 . 2 . . . 8 2 Fabricators . | . . . . . . . . . Repair Stations 3 | . . . 1 . . . 2 . Recycling Units 3 | . . . 1 . . . 2 . Scanalyzers 2 | . . . . . . . 2 . Garrison Access 1 | . . . . . . . 1 . Total Hacks 85 | . 13 . 12 . 1 . 55 4 Successful 61 | . 7 . 9 . 1 . 42 2 Failed 24 | . 6 . 3 . . . 13 2 Catastrophic 1 | . . . . . . . . 1 Database Lockouts . | . . . . . . . . . Manual 54 | . 13 . 9 . . . 31 1 Terminals 51 | . 13 . 4 . . . 30 4 Fabricators . | . . . . . . . . . Repair Stations 9 | . . . 3 . . . 6 . Recycling Units 9 | . . . 5 . . . 4 . Scanalyzers 12 | . . . . . . . 12 . Garrison Access 3 | . . . . . . . 3 . Terminal Hacks 12 | . 1 . . . 1 . 8 2 Record 1 | . . . . . 1 . . . Robot Analysis 3 | . . . . . . . 3 . Prototype ID Bank 2 | . . . . . . . 2 . Emergency Access Points 1 | . . . . . . . . 1 Terminal Index 2 | . 1 . . . . . 1 . Hauler Manifests 1 | . . . . . . . 1 . Zone Layout 1 | . . . . . . . 1 . Patrol Navigation 1 | . . . . . . . . 1 Fabricator Hacks . | . . . . . . . . . Repair Station Hacks 5 | . . . 2 . . . 3 . Scan Component 3 | . . . 1 . . . 2 . Repair 2 | . . . 1 . . . 1 . Recycling Unit Hacks 2 | . . . 1 . . . 1 . Report Inventory 2 | . . . 1 . . . 1 . Scanalyzer 11 | . . . . . . . 11 . Insert Component 5 | . . . . . . . 5 . Analyze 6 | . . . . . . . 6 . Garrison Access Hacks 1 | . . . . . . . 1 . Unlock Access 1 | . . . . . . . 1 . Unauthorized Hacks 30 | . 6 . 6 . . . 18 . Terminals 22 | . 6 . 3 . . . 13 . Track 1 | . . . . . . . 1 . Assimilate 4 | . . . . . . . 4 . Botnet 6 | . 2 . 2 . . . 2 . Operators 2 | . 1 . . . . . 1 . Skim 9 | . 3 . 1 . . . 5 . Fabricators . | . . . . . . . . . Repair Stations 1 | . . . . . . . 1 . Mechanics 1 | . . . . . . . 1 . Recycling Units 6 | . . . 3 . . . 3 . Monitor 2 | . . . 1 . . . 1 . Recyclers 2 | . . . 1 . . . 1 . Mask 2 | . . . 1 . . . 1 . Scanalyzers . | . . . . . . . . . Garrison Access 1 | . . . . . . . 1 . Watchers 1 | . . . . . . . 1 . Data Cores Recovered 1 | . . . 1 . . . . . Used 1 | . . . 1 . . . . . Hacking Detections 23 | . 3 . 4 . . . 14 2 Full Trace Events 1 | . . . . . . . 1 . Feedback Events . | . . . . . . . . . Feedback Blocked . | . . . . . . . . . Robot Schematics Acquired . | . . . . . . . . . Robots Built . | . . . . . . . . . Authchips . | . . . . . . . . . Time . | . . . . . . . . . Total Robot Build Rating . | . . . . . . . . . Part Schematics Acquired 4 | . . . . . . . 4 . Parts Built . | . . . . . . . . . Authchips . | . . . . . . . . . Time . | . . . . . . . . . Total Part Build Rating . | . . . . . . . . . Parts Repaired 2 | . . . 1 . . . 1 . Time 77 | . . . 26 . . . 51 . Parts Recycled . | . . . . . . . . . Recycled Matter . | . . . . . . . . . Retrieved Matter . | . . . . . . . . . Retrieved Components . | . . . . . . . . . Parts Scanalyzed 5 | . . . . . . . 5 . Part Schematics Acquired 4 | . . . . . . . 4 . Parts Damaged . | . . . . . . . . . Bothacking | -11 -10 -10 -9 -9 -9 -8 -8 -8 ------------ Run | Yrd Mat Min Mat Min Exi Min Mat Gar Used RIF Installer . | . . . . . . . . . Robots Hacked . | . . . . . . . . . Non-combat . | . . . . . . . . . Combat . | . . . . . . . . . Robot Hacks Applied . | . . . . . . . . . Relay Couplers Released 7 | . . . . . . . . 7 Machine Destruction 7 | . . . . . . . . 7 Fabnet Peak Effective % . | . . . . . . . . . Robots Rewired 7 | . . . . . . . . 7 Allies Hacked . | . . . . . . . . . Hacks Repelled . | . . . . . . . . . Allies | -11 -10 -10 -9 -9 -9 -8 -8 -8 -------- Run | Yrd Mat Min Mat Min Exi Min Mat Gar Total Allies 10 | . . 2 . . . . 1 7 Largest Group 5 | . . 2 2 . . . 1 5 Highest-Rated Group 89 | . . 39 39 . . . 10 89 Highest-Rated Ally 31 | . . 31 31 . . . 10 21 Total Orders . | . . . . . . . . . Ally Attacks 63 | . . . 10 . . . . 53 Total Damage 1042 | . . . 148 . . . . 894 Kills 8 | . . . 1 . . . . 7 Allies Corrupted . | . . . . . . . . . Allies Melted . | . . . . . . . . . Intel | -11 -10 -10 -9 -9 -9 -8 -8 -8 ------- Run | Yrd Mat Min Mat Min Exi Min Mat Gar Active Infowar (turns) 7238 | . . . 4543 286 556 214 1338 301 Terrain 1539 | . . . . . . . 1248 291 Structural 2731 | . . . 58 286 556 214 1320 297 Seismic 4485 | . . . 4485 . . . . . Robot Analysis Total 3 | . . . . . . . 3 . Derelict Logs Recovered 3 | . . 1 . 2 . . . . Drone Launches . | . . . . . . . . . Drone Recoveries . | . . . . . . . . . Exploration | -11 -10 -10 -9 -9 -9 -8 -8 -8 ------------- Run | Yrd Mat Min Mat Min Exi Min Mat Gar Turns Passed 9221 | 46 110 516 4829 321 556 230 2095 518 Spaces Moved 3542 | 43 113 566 367 337 532 186 1113 285 Core 3 | 3 . . . . . . . . Treads 387 | . . . . . . . 387 . Legs . | . . . . . . . . . Wheels 3152 | 40 113 566 367 337 532 186 726 285 Hover . | . . . . . . . . . Flight . | . . . . . . . . . Fastest Speed 50 | 50 80 80 80 85 95 110 105 105 Average Speed 104 | 77 80 80 91 86 102 110 130 108 Slowest Speed 240 | 80 80 80 95 95 110 110 240 120 Overloaded Moves . | . . . . . . . . . Propulsion Burnouts . | . . . . . . . . . Robots Hopped . | . . . . . . . . . Potential Cave-ins . | . . . . . . . . . Cave-ins Triggered . | . . . . . . . . . Exploration Rate (%) 55 | 3 35 97 21 88 71 45 87 53 Regions Visited 8 Branch Regions 4 Pre-discovered Areas 4 | . . . . . 1 . 3 . Known Exits Taken 1 | . . . . . . . 1 . Unknown Exits Taken 7 | 1 1 1 1 1 1 1 . . Scrap Searched 6 | . . 2 . 3 . 1 . . Spaces Dug 17 | . . . . . . . 17 . Terrain Destroyed 200 | . . . 2 67 . 4 62 65 Melee 3 | . . . . . . . 3 . Projectile 26 | . . . . . . . 26 . AOE 171 | . . . 2 67 . 4 33 65 Terrain Rammed . | . . . . . . . . . Walls Destroyed . | . . . . . . . . . Machines Disabled . | . . . . . . . . . Actions | -11 -10 -10 -9 -9 -9 -8 -8 -8 --------- Run | Yrd Mat Min Mat Min Exi Min Mat Gar Total 8596 | 52 124 607 4763 353 544 197 1524 432 Wait 4479 | . . 16 4293 . . . 162 8 Move 3534 | 42 112 565 366 336 531 185 1112 285 Hop . | . . . . . . . . . Pick Up 66 | 4 4 7 13 1 8 1 25 3 Fast Attach 25 | 6 2 . 4 1 . . 10 2 Attach 17 | . . . 4 . . . 11 2 Detach 4 | . 1 . 1 . . . 2 . Swap 72 | . . 1 11 4 1 2 31 22 Drop 54 | . 1 6 14 2 4 2 19 6 Fire 229 | . 4 12 54 9 . 7 101 42 Melee 28 | . . . . . . . 28 . Ram . | . . . . . . . . . Kick . | . . . . . . . . . Crush 5 | . . . . . . . 5 . Escape Stasis 16 | . . . . . . . . 16 Rewire 64 | . . . . . . . 18 46 Trap 3 | . . . 3 . . . . . Miscellaneous . | . . . . . . . . . Route ------- -11/Scrapyard -10/Materials -10/Mines -9/Materials -9/Mines (discovered 3 exits: *Mat x2 / *Exi) -9/Exiles (discovered 2 exits: [*Min x2]) -8/Mines -8/Materials (discovered 4 exits: *Fac x3 / Gar) -8/Garrison (discovered 1 exit: [*Mat]) History --------- Turn | Location | Event 30 | -11/Scrapyard | Discovered new exit (range 16) 47 | -11/Scrapyard | Entered Materials 48 | -10/Materials | Met a group of wandering Federalists 127 | -10/Materials | Discovered new exit (range 12) 157 | -10/Materials | Entered Mines 228 | -10/Mines | Learned Materials security intel 313 | -10/Mines | Build established: Mutant 521 | -10/Mines | Discovered new exit (range 16) 561 | -10/Mines | Found a damaged Exp. Sensor Array with a note attached 563 | -10/Mines | Found Prototype Device 577 | -10/Mines | Found a hidden stash of uninstalled traps 673 | -10/Mines | Entered Materials 673 | -9/Materials | Accompanied by 2 allies 673 | -9/Materials | Evolved 2 slots: Utility x2 678 | -9/Materials | Led the pair of lost Derelicts to an unsafe place 5196 | -9/Materials | Lost 3 parts (2u1w) 5205 | -9/Materials | Discovered new exit (range 13) 5264 | -9/Materials | Repaired Lgt. Armor Plating 5502 | -9/Materials | Entered Mines 5509 | -9/Mines | Received a Rocket Launcher from a helpful Derelict 5516 | -9/Mines | Learned Materials stockpile data 5517 | -9/Mines | Learned 2 Materials zone layouts 5615 | -9/Mines | Assembled infested the area 5683 | -9/Mines | Discovered new exit (range 10) 5783 | -9/Mines | Discovered new exit (range 6) 5819 | -9/Mines | Deemed a non-threat by the Exiles lab entrance 5819 | -9/Mines | Discovered new exit (range 5) 5823 | -9/Mines | Entered Exiles 5847 | -9/Exiles | Met 8R-AWN 5862 | -9/Exiles | Met EX-HEX 5919 | -9/Exiles | Met EX-DEC 5938 | -9/Exiles | Learned location of Zion (-6) 5955 | -9/Exiles | Met EX-BIN 6233 | -9/Exiles | Discovered new exit (range 14) 6367 | -9/Exiles | Discovered new exit (range 14) 6379 | -9/Exiles | Entered Mines 6603 | -8/Mines | Discovered new exit (range 6) 6609 | -8/Mines | Entered Materials 6609 | -8/Materials | Evolved 2 slots: Utility x2 6610 | -8/Materials | Identified exit to Factory 7061 | -8/Materials | Build established: Skirmisher 7179 | -8/Materials | Learned 4 Factory zone layouts 7210 | -8/Materials | Learned location of Recycling (-7) 7233 | -8/Materials | Learned location of Lower Caves (-6) 7245 | -8/Materials | Learned Storage stockpile data 7257 | -8/Materials | Learned location of 1 exit from Storage 7281 | -8/Materials | Learned Storage stockpile data 7363 | -8/Materials | Discovered exit to Factory (range 9) 7529 | -8/Materials | Repaired Hvy. Ion Engine 7730 | -8/Materials | Discovered exit to Factory (range 14) 8289 | -8/Materials | Lost 4 parts (1n2u1w) 8291 | -8/Materials | Found Prototype Device 8335 | -8/Materials | Core integrity fell below 50% 8473 | -8/Materials | Build established: Mutant 8632 | -8/Materials | Identified exit to Garrison 8665 | -8/Materials | Identified Exp. Sensor Array 8704 | -8/Materials | Entered Garrison 8721 | -8/Garrison | Phase Generator disabled 8775 | -8/Garrison | Garrison Relay disabled 8859 | -8/Garrison | Destroyed 7 combat bots 8992 | -8/Garrison | Triggered checkpoint 9029 | -8/Garrison | Discovered new exit (range 12) 9090 | -8/Garrison | Triggered checkpoint 9121 | -8/Garrison | Garrison Relay disabled 9198 | -8/Garrison | Triggered checkpoint 9203 | -8/Garrison | Core integrity fell below 20% 9208 | -8/Garrison | Triggered checkpoint 9222 | -8/Garrison | Destroyed by G-47 Trooper with Particle Gun Last Messages --------------- 09170_ Field strength at 10. 09171_ Stasis field depleted. 09198_ C-30 ARC bursts open, deploying its payload. 09198_ G-50 Soldier unfolds itself. 09198_ G-47 Trooper unfolds itself. 09199_ Slug penetrates G-50 Soldier. 09205_ Commando 3b destroyed. 09207_ Slug penetrates G-50 Soldier. 09207_ G-50 Soldier destroyed. 09208_ Beams of light sweep through the air. An alarm sounds. 09210_ Slug penetrates G-47 Trooper. 09210_ Slug penetrates Trooper 3b. 09210_ Lgt. Armor Plating destroyed. 09214_ W-25 Informer suffers critical hit (Smash). 09214_ W-25 Informer destroyed. 09217_ Triggered Stasis Trap. 09217_ A bubble of rippling energy engulfs the area. 09217_ Field strength at 90. 09219_ G-47 Trooper destroyed. 09222_ G-47 Trooper suffers critical hit (Burn). Map ----- +----------------------------------------------------+ | ???????#??#?####### ####### ## ########## ## | | ????????#??????### ###?##! !## | | ?????#??#??##?#?## ### ######## #### | | ?????#?#????###?## ####### ### ### ###?#### #### | | ???????? ?#??#?## ####### ### ###?######## | | ??????? ?????##### ####### ####### ###?### #### | | ??????#? ?#?##### ####### #######"""###?### #### | | ??????#????#?## ! ? | | ??????#??????## ## ##### ##### ###########?!!!??? | | ?????#?????#?## ## ##### #### ##########?"" ""## | | ??????????#??## ##" ##?## ##### ####??#?########?? | | ????????? ## ##%"##### ##### ################?# | | ????????? ## ""##" ##### ##### #########??###??## | | ????????? #### ##### ####### ###??? | | ?????? ?? = ##?### | | ????? ?? =% #### ######## # # ##??#? | | ?????## ## ##! #### ############ ## ###?## | | ?????## ## ## #### ##???##########?##??#??? | | ????? " = [=##?###??##??###??#???##? | | ??????" * ######?????#######?###?#?#? | | ??????? [ ####?##########??#?#?? | | ????? " = #### ##???#?##?#??#?#?????# | | ???#### ## ##h[%###### ########?###?#????#??? | | ???#### ## ##g%*###### #####?#####??#?##??##? | | ??? = ####??#??#??##?##?#? | | ??? ^ = @^ ####?####?###??##??# | | ?????## g%* ####### ####?#?#?#???####??? | | ?????### ### ## ######## ######??#?##?#?#??#? | | ?????### ### ## ######## #############?###??# | | ???????????###??## ###??###??#??#?? | | ????????????????## ######## ### ##?#??#?????###? | | ????? ????????#?## ######## ### ##??????#?##??#? | | ????????????????## ####???# ### ##??#?##??##?##? | | ?????????????#??## ######## ### ############?### | | ?????##???????#### ######## ### ################ | | ?????#???????#??## ^ ####### | | ???????#???#?##### =[ ##"T"## | | ???#???????????### ##### ########%####### "## | | ??????????????### ##### ########!####### ####### | | ?????#?????????## ##?## ## ##?#### ####### | | ???#???????????######??# ## ##### ###?### ##???#? | | ????????##?????######### ## #####!#"##?## ######? | | ??????#????????????##?## ## #?### ! ##### ######? | | ?????#?????????????????# ## #??## !"##?## ##?#? | | ???????##?#???#?#????#?# ## ##### "##?## < ##### | | ????????????#??????????# ## ###T# #"#?### ##### | | ???????????????????????# #########+###### | | ???????????????#?#?#??####! ############# ### | | ??????????#????#?#?###?#?# [ ## # ### | | ??????????????????????#??## #### | +----------------------------------------------------+ Best States ------------- Heat Dissipation 59 Energy Generation 16 Energy Capacity 290 Matter Stores 300 Matter Capacity 300 Sight Range 16 Terrain Scan Range 16 Terrain Scan Density 110 Additional Mass Support 6 Armor Coverage 300 Resistance: KI 20 Propulsion Shielding 66 Weapon Cycling 15 Evasion (%) 44 Core Analysis 6 Recoil Reduction 2 Energy Filtering 30 Particle Charging 15 Item Schematics ----------------- Imp. Terrain Scanner | -8/Materials | Scanalyzed System Shield | -8/Materials | Scanalyzed Core Analyzer | -8/Materials | Scanalyzed Graphene Brace | -8/Materials | Scanalyzed Robot Schematics ------------------ None Fabricated ------------ Nothing Repaired ---------- Lgt. Armor Plating | 97% | -9/Materials Hvy. Ion Engine | 20% | -8/Materials Alien Tech Used ----------------- None Achievements -------------- None Challenges ------------ None Game ------ Seed EfficiencyDamperMesh Manual? 0 Play Time 01:22:57 Cumulative 337.2 hours Start 2025.05.30 @ 10:34:16 End 2025.05.30 @ 11:59:59 Sessions 1 Manual Loads 0 Difficulty Rogue Special Mode None Game No. 160 Rogue 117 Adventurer 43 Explorer 0 Win Type - Total 6 Types 4/0/1/0/0/0/0/1/0/0 Lore% 84 Gallery% 73 Achievement% 66 Wizard Run 0 Options --------- Layout 0 ASCII 0 Keyboard 0 Movement Numpad Keybinds 0 Fullscreen 1 Font 24/Smallcaps Map View 76x50 Zoom Use 0% Tactical HUD 1 Map Filters NONE Filters NONE Steam 1 RUN: 266915a1-114b-4366-9a39-0fe863a7f611